[Event "CCT Airthings Masters Play-In 2023"]
[Site "Online"]
[Date "2023.02.03"]
[Round "3"]
[White "Sadhwani, Raunak"]
[Black "Indianlad"]
[Result "1/2-1/2"]
[ECO "D00"]
[WhiteElo "2627"]
[BlackElo "2555"]
[Annotator "TA"]
[PlyCount "117"]
[EventDate "2023.02.03"]
[EventType "swiss"]
[EventCountry "NET"]
[SourceTitle "playchess.com"]
[Source "ChessBase"]
[SourceQuality "1"]
[TimeControl "600+2"]

{[%evp 9,117,0,7,6,18,10,22,14,21,24,20,15,20,17,35,0,0,0,56,57,41,35,37,33,31,43,37,16,15,18,22,0,8,0,0,0,2,0,0,9,28,21,23,29,20,20,24,20,34,18,54,33,33,33,33,33,33,8,20,8,20,0,0,0,0,0,0,0,5,0,0,0,0,0,0,0,0,0,0,0,0,0,0,0,0,0,0,0,0,0,0,0,0,0,0,0,0,-12,-12,-12,-12,-12,-12,-12,-12,-12,0,0,0,0]} 1. d4 {[%emt 0:00:03]} Nf6 {[%emt 0:00:07]} 2. Nc3 {[%emt 0:00:00]} d5 {[%emt 0:00:02]} 3. Bf4 {[%emt 0:00:01]} a6 {[%emt 0:00:01]} 4. e3 {[%emt 0:00:01]} e6 {[%emt 0:00:06]} 5. g4 {[%emt 0:00:03][%cal Bg2g4,Bg4g5][%mdl 32]} c5 {[%emt 0:00:36]} 6. g5 {[%emt 0:00:02] D00: 1 d4 d5: Unusual lines.} Nfd7 {[%emt 0:00:01]} 7. Nf3 {[%emt 0:00:12]} b5 {[%emt 0:00:03]} 8. h4 {[%emt 0:00:03]} Bb7 {[%emt 0:00:07]} 9. h5 {[%emt 0:00:02]} Nc6 {[%emt 0:00:06]} 10. a3 {[%emt 0:00:22]} Be7 {[%emt 0:00:51] [#]} 11. Rg1 $146 {[%emt 0:00:06]} ({Predecessor:} 11. Bh3 g6 12. Bxe6 fxe6 13. hxg6 Qb6 14. gxh7 O-O-O 15. g6 Bf6 16. Bg5 cxd4 17. Bxf6 Nxf6 18. exd4 {1-0 Besedes,D (2314)-Aldokhin,I (2413) Titled Tuesday intern op 06th Sep Late blitz 2022 (4)}) 11... Qb6 {[%emt 0:00:27]} 12. dxc5 {[%emt 0:01:02]} Nxc5 {[%emt 0:00:02]} 13. Nd4 {[%emt 0:00:08]} g6 {[%emt 0:00:52]} ({Black should try} 13... b4 $11 14. axb4 Qxb4) 14. Nxc6 $14 {[%emt 0:00:29]} Bxc6 {[%emt 0:00:05]} 15. Qd4 {[%emt 0:00:06]} Rf8 {[%emt 0:00:02]} 16. Be5 {[%emt 0:01:00]} Nd7 {[%emt 0:00:06]} 17. Qxb6 {[%emt 0:00:10]} Nxb6 {[%emt 0:00:01]} 18. Bd4 {[%emt 0:00:00] Prevents gxh5} Nc4 {[%emt 0:00:40]} 19. Bxc4 {[%emt 0:00:13]} dxc4 {[%emt 0:00:01]} 20. hxg6 {[%emt 0:00:11]} hxg6 {[%emt 0:00:01]} 21. Ke2 {[%emt 0:00:24]} O-O-O {[%emt 0:00:36]} 22. Rg4 {[%emt 0:00:09]} Kb7 {[%emt 0:00:10]} 23. f3 {[%emt 0:00:16]} a5 {[%emt 0:00:09]} 24. Rh1 {[%emt 0:00:21]} b4 {[%emt 0:00:40]} 25. axb4 {[%emt 0:00:00]} axb4 {[%emt 0:00:02]} 26. Ne4 {[%emt 0:00:01]} Bxe4 {[%emt 0:01:11]} 27. Rxe4 {[%emt 0:00:45]} Bxg5 {[%emt 0:01:19]} 28. Bg7 {[%emt 0:00:59]} Rg8 {[%emt 0:00:38]} 29. Be5 {[%emt 0:00:03]} Rd5 {[%emt 0:01:06]} 30. f4 {[%emt 0:00:16]} Be7 {[%emt 0:00:06]} 31. Rh7 {[%emt 0:00:07]} Rf8 {[%emt 0:00:02]} 32. Rxc4 {[%emt 0:00:17]} Rd7 {[%emt 0:00:02] Dodges Rc7+} 33. Re4 {[%emt 0:01:03]} Kc6 {[%emt 0:00:16] The position is equal.} 34. Bg7 {[%emt 0:00:15]} Ra8 {[%emt 0:00:10]} 35. Bd4 {[%emt 0:00:04]} Bd6 {[%emt 0:00:01] [#] Hoping for ...f5.} 36. Bf6 {[%emt 0:00:04]} Bc5 {[%emt 0:00:10]} 37. Rc4 {[%emt 0:00:17] next Bd4 is good for White.} Kb5 {[%emt 0:00:01]} 38. b3 {[%emt 0:00:00]} Rc8 {[%emt 0:00:10]} 39. Kf3 {[%emt 0:00:12]} Rc6 {[%emt 0:00:03]} 40. Rh8 {[%emt 0:00:41]} Bb6 {[%emt 0:00:01]} 41. Rxc6 {[%emt 0:00:14]} Kxc6 $11 {[%emt 0:00:00][%mdl 4096] Endgame KRB-KRB} 42. Ke2 {[%emt 0:00:05]} Kb5 {[%emt 0:00:02]} 43. Rb8 {[%emt 0:00:02] aiming for Bd4.} Kc6 {[%emt 0:00:01]} 44. Rc8+ {[%emt 0:00:03]} Kb5 {[%emt 0:00:01]} 45. Be5 {[%emt 0:00:14]} Bc5 {[%emt 0:00:01]} 46. Rb8+ {[%emt 0:00:02]} Kc6 {[%emt 0:00:01]} 47. Rc8+ {[%emt 0:00:08]} Kb5 {[%emt 0:00:01]} 48. Kf3 {[%emt 0:00:03]} Rd2 {[%emt 0:00:04]} 49. Rc7 {[%emt 0:00:00]} f5 {[%emt 0:00:03]} 50. Rg7 {[%emt 0:00:02]} Rxc2 {[%emt 0:00:03]} 51. Rxg6 {[%emt 0:00:00]} Rd2 {[%emt 0:00:00]} 52. Rxe6 {[%emt 0:00:05]} Rd3 {[%emt 0:00:01][%csl LRb3,LRe3]} 53. Bf6 {[%emt 0:00:07]} Rxb3 {[%emt 0:00:01]} 54. Re5 {[%emt 0:00:03]} Kc4 {[%emt 0:00:00]} 55. Rxf5 {[%emt 0:00:06]} Rxe3+ {[%emt 0:00:01]} 56. Kg4 {[%emt 0:00:01]} b3 {[%emt 0:00:01]} 57. Rh5 {[%emt 0:00:02]} Bd4 {[%emt 0:00:02]} 58. Bxd4 {[%emt 0:00:02]} Kxd4 {[%emt 0:00:00]} 59. Rh1 {[%emt 0:00:01] Weighted Error Value: White=0.04 (flawless) /Black=0.06 (flawless)} 1/2-1/2

[Event "CCT Airthings Masters Play-In 2023"]
[Site "Online"]
[Date "2023.02.03"]
[Round "3"]
[White "NikoTheodorou"]
[Black "Dedic8"]
[Result "1-0"]
[ECO "E06"]
[WhiteElo "2626"]
[BlackElo "2496"]
[Annotator "TA"]
[PlyCount "65"]
[EventDate "2023.02.03"]
[EventType "swiss"]
[EventCountry "NET"]
[SourceTitle "playchess.com"]
[Source "ChessBase"]
[SourceQuality "1"]
[TimeControl "600+2"]

{[%evp 18,65,17,0,0,-12,-13,-12,4,0,24,0,37,0,0,0,16,15,81,78,103,112,82,62,104,99,100,98,271,310,282,300,350,330,399,381,556,551,538,508,29984,29985,29985,29986,29986,29987,29987,29988,29986,29987]} 1. d4 {[%emt 0:00:03]} Nf6 {[%emt 0:00:03]} 2. c4 {[%emt 0:00:01]} e6 {[%emt 0:00:06]} 3. Nf3 {[%emt 0:00:02]} d5 {[%emt 0:00:01]} 4. g3 {[%emt 0:00:01]} Bb4+ {[%emt 0:00:03]} 5. Bd2 {[%emt 0:00:02]} Be7 {[%emt 0:00:01]} 6. Bg2 {[%emt 0:00:01]} O-O {[%emt 0:00:02]} 7. O-O {[%emt 0:00:01]} c6 {[%emt 0:00:01]} 8. Qc2 {[%emt 0:00:01]} b6 {[%emt 0:00:01]} 9. Bf4 {[%emt 0:00:01]} Bb7 {[%emt 0:00:17]} 10. Nbd2 {[%emt 0:00:03]} Nh5 {[%emt 0:00:11] E06: Closed Catalan: Early deviations.} 11. Be5 $5 {[%emt 0:00:48][%mdl 4] 11.e3 is the modern continuation. A promising side line.} Nd7 {[%emt 0:00:08]} 12. e4 {[%emt 0:00:19] [#]} Nxe5 $146 {[%emt 0:03:54] The position is equal.} ({Predecessor:} 12... g5 13. cxd5 cxd5 14. Bc7 Qe8 15. Rac1 Rc8 16. Qd3 f6 17. Qe3 Ng7 18. Rfe1 Qf7 {½-½ Lysyj,I (2603)-Petrov,N (2539) RUS-ch Rapid 2021 (9)}) 13. Nxe5 {[%emt 0:00:30]} Nf6 {[%emt 0:00:15]} 14. Rfd1 {[%emt 0:00:43]} dxc4 {[%emt 0:00:11]} 15. Ndxc4 {[%emt 0:00:08]} Qc7 {[%emt 0:00:01]} 16. a3 {[%emt 0:00:19]} c5 {[%emt 0:01:09]} 17. d5 {[%emt 0:01:11] [#] Threatens to win with d6.} exd5 {[%emt 0:00:01]} (17... Rad8 $11 {keeps the balance.}) 18. exd5 $16 {[%emt 0:00:01]} Bd6 {[%emt 0:00:00]} 19. Nc6 {[%emt 0:00:23] White has more active pieces. The black rooks are badly placed.} Rfe8 {[%emt 0:00:34]} 20. Rac1 {[%emt 0:00:02]} h6 {[%emt 0:01:13]} 21. b4 {[%emt 0:00:01]} cxb4 {[%emt 0:00:10]} 22. axb4 {[%emt 0:00:00][%cal Ba3b4,Bb4c5,Bc5c6,Bc6c7][%mdl 32]} b5 $2 {[%emt 0:00:33] Black cannot hold the game after this.} (22... Bc8 $16) 23. Nxd6 $18 {[%emt 0:00:59]} Qxd6 {[%emt 0:00:00]} 24. Qc5 {[%emt 0:00:01]} Qxc5 {[%emt 0:00:32]} 25. Rxc5 {[%emt 0:00:00]} Ne4 {[%emt 0:00:58]} 26. d6 {[%emt 0:01:10][%cal Bd5d6,Bd6d7][%mdl 32] Strongly threatening Bxe4.} ({And not} 26. Rxb5 Bxc6 27. dxc6 Nc3 $11) 26... Nxc5 {[%emt 0:00:22]} (26... Bxc6 $142 27. Rxc6 f5) 27. bxc5 {[%emt 0:00:01] And now Ne7+ would win.} Kf8 {[%emt 0:00:05]} 28. d7 {[%emt 0:00:22] Wards off Rac8} Red8 {[%emt 0:00:01]} (28... g6 $18 29. dxe8=B (29. d8=B $2 {is the wrong capture.} Bxc6 30. Ba5 Bxg2 $19) 29... Kxe8) 29. Nxd8 {[%emt 0:00:04][%mdl 64] [#] Discovered Attack. White mates.} Bxg2 {[%emt 0:00:01]} 30. Kxg2 {[%emt 0:00:07]} Rxd8 {[%emt 0:00:00]} 31. c6 {[%emt 0:00:01]} Ke7 {[%emt 0:00:01]} 32. c7 {[%emt 0:00:00]} Rxd7 {[%emt 0:00:00]} 33. Re1+ {[%emt 0:00:01] Weighted Error Value: White=0.06 (flawless) /Black=0.61} (33. c8=B $2 {loses.} Rxd1 34. Ba6 b4 $19) 1-0

[Event "CCT Airthings Masters Play-In 2023"]
[Site "Online"]
[Date "2023.02.03"]
[Round "3"]
[White "OparinGrigoriy"]
[Black "Anonymous"]
[Result "1-0"]
[ECO "E11"]
[WhiteElo "2626"]
[BlackElo "2495"]
[Annotator "TA"]
[PlyCount "91"]
[EventDate "2023.02.03"]
[EventType "swiss"]
[EventCountry "NET"]
[SourceTitle "playchess.com"]
[Source "ChessBase"]
[SourceQuality "1"]
[TimeControl "600+2"]

{[%evp 12,91,21,11,34,29,43,38,36,50,37,43,51,46,57,57,52,46,25,29,47,29,87,60,92,50,135,125,139,66,292,288,313,178,153,114,149,102,95,104,152,161,162,133,200,204,195,202,226,216,237,195,204,168,543,339,464,458,453,441,453,449,417,407,748,704,846,629,630,578,580,578,5577,6492,6477,6427,6598,1854,29998,1134,12843,12843]} 1. d4 {[%emt 0:00:03]} Nf6 {[%emt 0:00:04]} 2. c4 {[%emt 0:00:00]} e6 {[%emt 0:00:01]} 3. Nf3 {[%emt 0:00:01]} d5 {[%emt 0:00:02]} 4. g3 {[%emt 0:00:01]} Bb4+ {[%emt 0:00:02]} 5. Bd2 {[%emt 0:00:04]} a5 {[%emt 0:00:02]} 6. Bg2 {[%emt 0:00:05]} O-O {[%emt 0:00:05]} 7. Qc2 {[%emt 0:00:09]} c5 {[%emt 0:00:04] E11: Bogo-Indian.} 8. cxd5 $1 {[%emt 0:00:08] 8.cxd5 is better than 8.dxc5.} cxd4 {[%emt 0:00:04]} 9. Nxd4 {[%emt 0:00:02]} Qb6 {[%emt 0:00:02] White is slightly better.} 10. e3 {[%emt 0:00:07]} exd5 {[%emt 0:00:02]} 11. O-O {[%emt 0:00:03]} Nc6 {[%emt 0:00:01]} 12. Nxc6 {[%emt 0:00:01]} bxc6 {[%emt 0:00:03]} 13. Rc1 {[%emt 0:00:01]} Rb8 {[%emt 0:00:06]} 14. Bxb4 {[%emt 0:00:10]} (14. Qxc6 Qxc6 15. Rxc6 Bxd2 16. Nxd2 Rxb2 $11) 14... Qxb4 {[%emt 0:00:06]} 15. b3 {[%emt 0:00:01]} h5 {[%emt 0:00:07]} 16. Nd2 {[%emt 0:00:17]} (16. Qxc6 Bf5 17. Qa4 (17. Bxd5 $2 Rbc8 $19) 17... Rfc8 $15) 16... h4 {[%emt 0:00:52]} (16... Bd7 $11 {remains equal.}) 17. a3 {[%emt 0:00:13]} Qg4 {[%emt 0:00:34]} 18. h3 $36 {[%emt 0:00:02][%mdl 2048] [#] White is pushing.} Qg5 $146 {[%emt 0:00:37]} (18... Qe6 $14) ({Predecessor:} 18... Qd7 19. g4 d4 20. exd4 Qxd4 21. Nf3 Qf4 22. Qd2 Nd5 23. Rxc6 Qxd2 24. Nxd2 Nf4 {0-1 Alonso Rosell,A (2564)-Gukesh,D (2726) ESP-chT Rapid 2022 (5)}) 19. Nf3 $16 {[%emt 0:00:11]} (19. Qxc6 hxg3 20. Qd6 (20. f4 $2 Qh6 $19) 20... gxf2+ 21. Kxf2 Bd7 $17) 19... Qh5 {[%emt 0:00:10] [#] ...hxg3 is the strong threat.} 20. Nxh4 {[%emt 0:00:15]} ({White should play} 20. g4 $16 Nxg4 21. hxg4 Bxg4 22. Nd4) 20... g5 $2 {[%emt 0:00:40]} (20... Bd7 $14) 21. Nf5 $18 {[%emt 0:00:01]} (21. Qxc6 Kg7 $16) 21... g4 {[%emt 0:00:43]} 22. hxg4 {[%emt 0:00:02]} (22. Qxc6 $2 Qxf5 23. h4 Rxb3 $19) (22. Ne7+ $142 Kg7 23. h4 (23. Nxc6 gxh3 24. f3 hxg2 $17) (23. Qxc6 a4 $18)) 22... Nxg4 {[%emt 0:00:11]} 23. Nh4 {[%emt 0:00:19]} Be6 {[%emt 0:00:46]} 24. Qxc6 {[%emt 0:02:07]} ({Better is} 24. Qc3) 24... Rxb3 $16 {[%emt 0:00:05]} 25. Qa4 {[%emt 0:00:09][%csl LRa5,LRb3]} Rb2 {[%emt 0:00:19]} (25... Rfb8 $142) 26. Bf3 {[%emt 0:00:10]} (26. Qxa5 Nxf2 27. Rcb1 Rc2 $15) 26... Qg5 {[%emt 0:01:08]} 27. Bxg4 {[%emt 0:00:02]} (27. Qxa5 $2 Nxf2 28. Rab1 Qxg3+ 29. Kf1 Ra2 $19) 27... Bxg4 {[%emt 0:00:01]} (27... Qxg4 $16 28. Qxg4+ (28. Qxa5 Rfb8 $16) 28... Bxg4) 28. Rab1 $18 {[%emt 0:00:55]} ({Resist} 28. Qxa5 Qf6 29. Qe1 (29. Qxd5 $2 {is a self mate.} Qxf2+ 30. Kh1 Qh2#) 29... Re2 $16) 28... Rxb1 {[%emt 0:02:06]} 29. Rxb1 {[%emt 0:00:01]} Rc8 {[%emt 0:00:47]} 30. Qxa5 {[%emt 0:00:16]} Qf6 {[%emt 0:00:11]} 31. Qb4 {[%emt 0:00:32]} Be6 {[%emt 0:00:10]} 32. Qf4 {[%emt 0:00:52]} Qc3 {[%emt 0:00:35]} (32... Qxf4 33. gxf4 Kg7) 33. a4 {[%emt 0:00:19] [#] Black must now prevent Nf5.} Qc2 {[%emt 0:00:09]} 34. Rb8 {[%emt 0:00:17]} ({Less strong is} 34. Qg5+ Kh7 35. Qh5+ Kg8 $18) 34... Rxb8 {[%emt 0:00:09]} 35. Qxb8+ {[%emt 0:00:01][%mdl 4096] Endgame KQB-KQN} Kh7 {[%emt 0:00:00]} 36. Qf4 {[%emt 0:00:08]} Kg8 {[%emt 0:00:07]} 37. Nf3 {[%emt 0:00:25]} Qd1+ {[%emt 0:00:03]} (37... Qb1+ $142 38. Kg2 Bf5 39. Qg5+ Kf8 40. Qd8+ Kg7 41. Qxd5 Be4) 38. Kg2 {[%emt 0:00:04]} d4 {[%emt 0:00:01]} 39. Qxd4 {[%emt 0:00:07]} Qb3 {[%emt 0:00:01]} 40. Ng5 {[%emt 0:00:13]} Qb7+ {[%emt 0:00:03]} 41. e4 {[%emt 0:00:03]} Bd7 {[%emt 0:00:02]} 42. a5 {[%emt 0:00:06][%cal Oa5a6] And now a6! would win.} Bc6 {[%emt 0:00:00]} 43. Qe5 {[%emt 0:00:10] Hoping for Qf5.} Qb4 {[%emt 0:00:03]} 44. Qf5 {[%emt 0:00:06]} Qe7 {[%emt 0:00:03]} 45. a6 {[%emt 0:00:11]} (45. Qh7+ $142 Kf8 46. Qh8#) 45... f6 {[%emt 0:00:02]} 46. Qg6+ {[%emt 0:00:01] Weighted Error Value: White=0.29 (precise) /Black=0.41} 1-0

[Event "CCT Airthings Masters Play-In 2023"]
[Site "Online"]
[Date "2023.02.03"]
[Round "3"]
[White "chesspanda123"]
[Black "OldweakGM"]
[Result "1-0"]
[ECO "A07"]
[WhiteElo "2625"]
[BlackElo "2435"]
[Annotator "NA"]
[PlyCount "101"]
[EventDate "2023.02.03"]
[EventType "swiss"]
[EventCountry "NET"]
[SourceTitle "playchess.com"]
[Source "ChessBase"]
[SourceQuality "1"]
[TimeControl "600+2"]

1. Nf3 {[%emt 0:00:03]} d5 {[%emt 0:00:06]} 2. g3 {[%emt 0:00:02]} Nf6 {[%emt 0:00:30]} 3. Bg2 {[%emt 0:00:03]} c6 {[%emt 0:00:00]} 4. O-O {[%emt 0:00:01]} Bf5 {[%emt 0:00:03]} 5. d3 {[%emt 0:00:02]} e6 {[%emt 0:00:02]} 6. Nh4 {[%emt 0:00:19]} Bg4 {[%emt 0:00:04]} 7. h3 {[%emt 0:00:06]} Bh5 {[%emt 0:00:01]} 8. Qe1 {[%emt 0:00:25]} Nfd7 {[%emt 0:00:26]} 9. f4 {[%emt 0:00:06]} Be7 {[%emt 0:00:03]} 10. Nf3 {[%emt 0:00:03]} Bxf3 {[%emt 0:00:30]} 11. Bxf3 {[%emt 0:00:06]} O-O {[%emt 0:00:01]} 12. e4 {[%emt 0:00:02]} Na6 {[%emt 0:00:01]} 13. Nc3 {[%emt 0:00:19]} Bf6 {[%emt 0:00:49]} 14. e5 {[%emt 0:00:27]} Be7 {[%emt 0:00:02]} 15. Ne2 {[%emt 0:00:05]} Nb4 {[%emt 0:00:07]} 16. Qd1 {[%emt 0:00:10]} c5 {[%emt 0:00:03]} 17. c3 {[%emt 0:00:05]} Nc6 {[%emt 0:00:01]} 18. Be3 {[%emt 0:00:03]} Rc8 {[%emt 0:00:10]} 19. Kg2 {[%emt 0:00:22]} Kh8 {[%emt 0:00:13]} 20. h4 {[%emt 0:00:20]} f6 {[%emt 0:00:14]} 21. d4 {[%emt 0:00:19]} cxd4 {[%emt 0:00:02]} 22. Nxd4 {[%emt 0:00:22]} Nxd4 {[%emt 0:00:01]} 23. cxd4 {[%emt 0:00:01]} f5 {[%emt 0:00:12]} 24. h5 {[%emt 0:00:10]} Nb8 {[%emt 0:01:26]} 25. g4 {[%emt 0:00:15]} Qb6 {[%emt 0:01:01]} 26. gxf5 {[%emt 0:00:23]} Rxf5 {[%emt 0:00:09]} 27. Bg4 {[%emt 0:00:05]} Rff8 {[%emt 0:00:01]} 28. Qb3 {[%emt 0:00:22]} Qa6 {[%emt 0:00:01]} 29. Rf2 {[%emt 0:00:43]} Nc6 {[%emt 0:00:32]} 30. Be2 {[%emt 0:00:07]} Qa5 {[%emt 0:00:10]} 31. Qxb7 {[%emt 0:00:48]} Bh4 {[%emt 0:00:01]} 32. Rf3 {[%emt 0:01:18]} Ne7 {[%emt 0:00:56]} 33. Qa6 {[%emt 0:00:34]} Qb4 {[%emt 0:00:19]} 34. Qb5 {[%emt 0:00:36]} Qxb5 {[%emt 0:00:01]} 35. Bxb5 {[%emt 0:00:01]} Nf5 {[%emt 0:00:00]} 36. Bg1 {[%emt 0:00:20]} Rc2+ {[%emt 0:00:07]} 37. Kh3 {[%emt 0:00:02]} Rxb2 {[%emt 0:00:03]} 38. Bd7 {[%emt 0:00:23]} Rb6 {[%emt 0:00:10]} 39. Rb3 {[%emt 0:00:23]} Ra6 {[%emt 0:00:01]} 40. Rc1 {[%emt 0:00:18]} Kg8 {[%emt 0:00:38]} 41. Bc8 {[%emt 0:00:17]} Rxc8 {[%emt 0:00:01]} 42. Rxc8+ {[%emt 0:00:00]} Kf7 {[%emt 0:00:00]} 43. Rc2 {[%emt 0:00:12]} Bd8 {[%emt 0:00:16]} 44. Rb7+ {[%emt 0:00:06]} Be7 {[%emt 0:00:01]} 45. Kg4 {[%emt 0:00:05]} Ra3 {[%emt 0:00:05]} 46. Rb3 {[%emt 0:00:01]} Ra4 {[%emt 0:00:07]} 47. Bf2 {[%emt 0:00:03]} Bd8 {[%emt 0:00:00]} 48. Rb7+ {[%emt 0:00:01]} Be7 {[%emt 0:00:09]} 49. Rcc7 {[%emt 0:00:02]} Ra3 {[%emt 0:00:08]} 50. Rxe7+ {[%emt 0:00:03]} Kf8 {[%emt 0:00:21]} 51. Rf7+ {[%emt 0:00:03]} 1-0

[Event "CCT Airthings Masters Play-In 2023"]
[Site "Online"]
[Date "2023.02.03"]
[Round "3"]
[White "BilodeauA"]
[Black "Duda, Jan-Krzysztof"]
[Result "1-0"]
[ECO "D00"]
[WhiteElo "2619"]
[BlackElo "2729"]
[Annotator "TA"]
[PlyCount "69"]
[EventDate "2023.02.03"]
[EventType "swiss"]
[EventCountry "NET"]
[SourceTitle "playchess.com"]
[Source "ChessBase"]
[SourceQuality "1"]
[TimeControl "600+2"]

{[%evp 9,69,0,0,0,0,-32,-13,-27,20,-7,0,0,-23,-27,0,-36,-8,-4,-22,-20,0,0,4,0,0,0,0,-13,0,-31,-28,-20,0,0,8,0,18,0,49,0,55,41,187,0,5,0,1003,871,1975,1846,2351,2337,1848,1389,29970,29972,29995,29996,29996,29997,29997,29998]} 1. d4 {[%emt 0:00:05]} Nf6 {[%emt 0:00:06]} 2. Nc3 {[%emt 0:00:01]} d5 {[%emt 0:00:03]} 3. Bf4 {[%emt 0:00:02]} a6 {[%emt 0:00:07]} 4. e3 {[%emt 0:00:01]} e6 {[%emt 0:00:25]} 5. g4 {[%emt 0:00:04]} h6 {[%emt 0:00:12]} 6. Bg2 {[%emt 0:01:21] D00: 1 d4 d5: Unusual lines.} c5 {[%emt 0:00:19]} 7. h4 {[%emt 0:00:16]} cxd4 {[%emt 0:01:08]} 8. exd4 {[%emt 0:00:00] [#] The position is equal.} g6 $146 {[%emt 0:00:02]} (8... Nc6 $142) ({Predecessor:} 8... Nc6 9. g5 hxg5 10. hxg5 Rxh1 11. Bxh1 Ng8 12. Qd2 b5 13. O-O-O b4 14. Nce2 a5 {1-0 Madaminov,M (2404)-Suleymanli,A (2537) Titled Tuesday intern op 14th Jun Early blitz 2022 (4)}) 9. Qf3 {[%emt 0:00:28]} b5 {[%emt 0:00:48]} 10. a3 {[%emt 0:00:05]} Bb7 {[%emt 0:00:35]} 11. Nge2 {[%emt 0:00:23]} Nc6 {[%emt 0:00:16]} 12. Rd1 {[%emt 0:00:53]} h5 {[%emt 0:00:07]} 13. g5 {[%emt 0:00:07]} Nd7 {[%emt 0:00:03]} 14. O-O {[%emt 0:00:09]} Bg7 {[%emt 0:00:07]} 15. Bd6 {[%emt 0:00:55][%cal Oc3d5] Hoping for Nxd5!} Ne7 {[%emt 0:00:37]} 16. Rfe1 {[%emt 0:00:35]} Nb6 {[%emt 0:00:57]} 17. Bc5 {[%emt 0:00:03]} O-O {[%emt 0:00:12]} 18. Bh3 {[%emt 0:00:11]} Nd7 {[%emt 0:01:02]} 19. Bb4 {[%emt 0:00:17]} Re8 $1 {[%emt 0:00:15]} 20. Nf4 {[%emt 0:00:21][%cal Of4e6] Strongly threatening Nxe6!} Nf8 {[%emt 0:00:44]} (20... Nc6 $5 {[%cal Rc6d4]} 21. Nxe6 fxe6 22. Rxe6 Nf8 23. Bxf8 (23. Rxe8 Qxe8 24. Bc5 Rd8 $17) 23... Rxf8 $11) 21. Bc5 {[%emt 0:00:28]} Qc7 {[%emt 0:00:07]} 22. b4 {[%emt 0:00:54]} Rad8 {[%emt 0:00:12]} 23. Qg3 {[%emt 0:00:43][%cal Of4h5]} Rc8 {[%emt 0:01:00]} (23... Qc6 $11) 24. Rd3 {[%emt 0:00:34]} (24. a4 $14 {is superior.}) 24... Kh7 {[%emt 0:00:02]} (24... Qb8 $11) 25. Qf3 {[%emt 0:00:29]} Nd7 {[%emt 0:00:23] [#]} ({Black should play} 25... Rcd8 $14) 26. Nxh5 $2 {[%emt 0:00:08]} gxh5 $11 {[%emt 0:00:43]} 27. Qxf7 $40 {[%emt 0:00:01][%mdl 128] White attacks.} (27. Rxe6 $5 Ng6 $8 28. Rde3 (28. Nxd5 $2 Bxd5 29. Qxh5+ Kg8 $19) (28. Qxf7 Rxe6 29. Qxe6 Nxc5 $11) (28. Qxh5+ Kg8 $11) 28... fxe6 29. Qxh5+ Kg8 30. Qxg6 Nxc5 31. bxc5 $11) 27... Nxc5 $4 {[%emt 0:00:01][%mdl 8192]} (27... Ng6 $11 28. Rxe6 (28. Bf5 Ndf8 $15) 28... Rxe6 29. Qxe6 Nxc5 30. dxc5 Rf8) 28. Rxe6 {[%emt 0:00:22][%csl Gg5][%cal Re6h6]} ({Worse is} 28. bxc5 Ng6 29. Qf3 Nf4 30. Bxe6 Nxe6 $17) 28... Kh8 {[%emt 0:00:21]} 29. bxc5 {[%emt 0:00:10]} Rf8 {[%emt 0:00:01]} 30. Qxh5+ {[%emt 0:00:15]} Kg8 {[%emt 0:00:00]} 31. g6 {[%emt 0:00:00][%csl Gg6][%cal Rh5h7]} Rf4 {[%emt 0:00:04]} 32. Rde3 {[%emt 0:00:06] White mates.} Nc6 {[%emt 0:00:03]} 33. Re8+ {[%emt 0:00:06]} Rxe8 {[%emt 0:00:01]} 34. Rxe8+ {[%emt 0:00:02]} Bf8 {[%emt 0:00:00]} 35. Be6+ {[%emt 0:00:04] Beautiful play by BilodeauA!   Weighted Error Value: White=0.18 (very precise) /Black=0.36} 1-0